[Event "Titled Tuesday Blitz August 09 Early 2022"]
[White "Begunov, Konstantin"]
[Black "Agasarov, Benik"]
[WhiteFideId "4118510"]
[BlackFideId "13314823"]
[WhiteElo "2262"]
[BlackElo "2152"]
[Result "1-0"]
[Round "10"]
[TimeControl "180+1"]
[Date "2022.08.09"]
[WhiteClock "0:00:22"]
[BlackClock "0:01:08"]

1. d4 {[%clk 0:02:56]}  Nf6 {[%clk 0:02:59]} 2. c4 {[%clk 0:02:55]}  g6 {[%clk 0:02:59]} 3. f3 {[%clk 0:02:55]}  Bg7 {[%clk 0:02:55]} 4. e4 {[%clk 0:02:55]}  O-O {[%clk 0:02:56]} 5. Nc3 {[%clk 0:02:56]}  d6 {[%clk 0:02:55]} 6. Be3 {[%clk 0:02:56]}  c5 {[%clk 0:02:55]} 7. dxc5 {[%clk 0:02:56]}  dxc5 {[%clk 0:02:55]} 8. Qxd8 {[%clk 0:02:57]}  Rxd8 {[%clk 0:02:55]} 9. Bxc5 {[%clk 0:02:57]}  Nc6 {[%clk 0:02:53]} 10. Nd5 {[%clk 0:02:58]}  Nxd5 {[%clk 0:02:38]} 11. cxd5 {[%clk 0:02:59]}  Bxb2 {[%clk 0:02:37]} 12. Rb1 {[%clk 0:02:47]}  Bc3+ {[%clk 0:02:37]} 13. Kf2 {[%clk 0:02:47]}  Bd4+ {[%clk 0:02:38]} 14. Bxd4 {[%clk 0:02:45]}  Nxd4 {[%clk 0:02:38]} 15. Ke3 {[%clk 0:02:32]}  e5 {[%clk 0:02:37]} 16. Ne2 {[%clk 0:02:32]}  Nxe2 {[%clk 0:02:27]} 17. Bxe2 {[%clk 0:02:33]}  b6 {[%clk 0:02:27]} 18. Rhc1 {[%clk 0:02:32]}  Bd7 {[%clk 0:02:22]} 19. Rc7 {[%clk 0:02:31]}  Kf8 {[%clk 0:02:21]} 20. Ba6 {[%clk 0:02:21]}  Ke7 {[%clk 0:02:19]} 21. Rbc1 {[%clk 0:02:01]}  Kd6 {[%clk 0:02:18]} 22. a4 {[%clk 0:01:51]}  f5 {[%clk 0:02:12]} 23. Bb5 {[%clk 0:01:41]}  f4+ {[%clk 0:02:11]} 24. Kd3 {[%clk 0:01:37]}  Ke7 {[%clk 0:01:44]} 25. R1c6 {[%clk 0:01:14]}  Kf8 {[%clk 0:01:33]} 26. Rf6+ {[%clk 0:00:38]}  Kg7 {[%clk 0:01:33]} 27. Re6 {[%clk 0:00:35]}  Rac8 {[%clk 0:01:21]} 28. Rxd7+ {[%clk 0:00:34]}  Rxd7 {[%clk 0:01:21]} 29. Bxd7 {[%clk 0:00:35]}  Rc1 {[%clk 0:01:22]} 30. Rxe5 {[%clk 0:00:33]}  a6 {[%clk 0:01:20]} 31. Re6 {[%clk 0:00:31]}  Rb1 {[%clk 0:01:18]} 32. e5 {[%clk 0:00:29]}  Rd1+ {[%clk 0:01:17]} 33. Ke4 {[%clk 0:00:29]}  g5 {[%clk 0:01:14]} 34. d6 {[%clk 0:00:30]}  a5 {[%clk 0:01:10]} 35. Re7+ {[%clk 0:00:29]}  Kh6 {[%clk 0:01:10]} 36. Bb5 {[%clk 0:00:29]}  Kg6 {[%clk 0:01:09]} 37. d7 {[%clk 0:00:29]}  Re1+ {[%clk 0:01:09]} 38. Kd5 {[%clk 0:00:28]}  Kf5 {[%clk 0:01:08]} 39. Re8 {[%clk 0:00:24]}  Rd1+ {[%clk 0:01:08]} 40. Kc6 {[%clk 0:00:24]}  Rc1+ {[%clk 0:01:08]} 41. Kxb6 {[%clk 0:00:24]}  Rd1 {[%clk 0:01:07]} 42. Kxa5 {[%clk 0:00:24]}  g4 {[%clk 0:01:06]} 43. fxg4+ {[%clk 0:00:23]}  Kxg4 {[%clk 0:01:07]} 44. e6 {[%clk 0:00:24]}  f3 {[%clk 0:01:07]} 45. gxf3+ {[%clk 0:00:23]}  Kxf3 {[%clk 0:01:08]} 46. d8=Q {[%clk 0:00:23]}  Rg1 {[%clk 0:01:07]} 47. e7 {[%clk 0:00:23]}  Kg2 {[%clk 0:01:08]} 48. Qd5+ {[%clk 0:00:23]}  Kxh2 {[%clk 0:01:08]} 49. Qh5+ {[%clk 0:00:21]}  Kg2 {[%clk 0:01:08]} 50. Rg8+ {[%clk 0:00:22]}  Kf2 {[%clk 0:01:08]} 51. Rxg1 {[%clk 0:00:22]} 1-0


[Site "https://www.chess.com"]

[Event "Titled Tuesday Blitz August 09 Early 2022"]
[White "Bilych, Olexiy"]
[Black "Chyzy, Jakub"]
[WhiteFideId "14156504"]
[BlackFideId "21806209"]
[WhiteElo "2157"]
[BlackElo "2023"]
[Result "1/2-1/2"]
[Round "10"]
[TimeControl "180+1"]
[Date "2022.08.09"]
[WhiteClock "0:00:06"]
[BlackClock "0:00:05"]

1. e4 {[%clk 0:03:00]}  Nf6 {[%clk 0:03:00]} 2. e5 {[%clk 0:03:00]}  Nd5 {[%clk 0:03:00]} 3. d4 {[%clk 0:03:01]}  d6 {[%clk 0:03:01]} 4. c4 {[%clk 0:03:02]}  Nb6 {[%clk 0:03:01]} 5. exd6 {[%clk 0:03:03]}  exd6 {[%clk 0:03:01]} 6. Nc3 {[%clk 0:03:03]}  Be7 {[%clk 0:03:02]} 7. Bd3 {[%clk 0:03:04]}  O-O {[%clk 0:03:02]} 8. Nge2 {[%clk 0:03:04]}  Bf6 {[%clk 0:03:02]} 9. Be3 {[%clk 0:03:05]}  Nc6 {[%clk 0:03:01]} 10. b3 {[%clk 0:03:04]}  Re8 {[%clk 0:02:56]} 11. O-O {[%clk 0:03:02]}  Bg4 {[%clk 0:02:56]} 12. Qd2 {[%clk 0:02:59]}  Qd7 {[%clk 0:02:31]} 13. Rae1 {[%clk 0:02:54]}  Rad8 {[%clk 0:02:23]} 14. f3 {[%clk 0:02:35]}  Bf5 {[%clk 0:02:16]} 15. Bxf5 {[%clk 0:02:32]}  Qxf5 {[%clk 0:02:16]} 16. d5 {[%clk 0:02:30]}  Ne5 {[%clk 0:02:12]} 17. Ne4 {[%clk 0:02:24]}  h6 {[%clk 0:02:07]} 18. N2g3 {[%clk 0:02:14]}  Qg6 {[%clk 0:01:58]} 19. Nxf6+ {[%clk 0:02:11]}  Qxf6 {[%clk 0:01:59]} 20. Bd4 {[%clk 0:02:11]}  Qg6 {[%clk 0:01:43]} 21. Re4 {[%clk 0:01:41]}  f5 {[%clk 0:01:36]} 22. Re2 {[%clk 0:01:36]}  Qf7 {[%clk 0:01:12]} 23. Qf4 {[%clk 0:01:25]}  g5 {[%clk 0:01:11]} 24. Qd2 {[%clk 0:01:03]}  Ng6 {[%clk 0:00:39]} 25. Rfe1 {[%clk 0:00:54]}  Rxe2 {[%clk 0:00:35]} 26. Qxe2 {[%clk 0:00:53]}  Nf4 {[%clk 0:00:31]} 27. Qe7 {[%clk 0:00:49]}  Rd7 {[%clk 0:00:15]} 28. Qe8+ {[%clk 0:00:43]}  Qxe8 {[%clk 0:00:13]} 29. Rxe8+ {[%clk 0:00:43]}  Kf7 {[%clk 0:00:13]} 30. Rb8 {[%clk 0:00:24]}  h5 {[%clk 0:00:08]} 31. Nxf5 {[%clk 0:00:19]}  Kg6 {[%clk 0:00:04]} 32. g4 {[%clk 0:00:17]}  hxg4 {[%clk 0:00:04]} 33. fxg4 {[%clk 0:00:18]}  Ne2+ {[%clk 0:00:04]} 34. Kf2 {[%clk 0:00:18]}  Nxd4 {[%clk 0:00:04]} 35. Nxd4 {[%clk 0:00:19]}  Rh7 {[%clk 0:00:05]} 36. Kg3 {[%clk 0:00:19]}  Nd7 {[%clk 0:00:05]} 37. Rxb7 {[%clk 0:00:17]}  Nc5 {[%clk 0:00:05]} 38. Rb8 {[%clk 0:00:16]}  Ne4+ {[%clk 0:00:05]} 39. Kf3 {[%clk 0:00:17]}  Nd2+ {[%clk 0:00:05]} 40. Ke3 {[%clk 0:00:17]}  Nf1+ {[%clk 0:00:05]} 41. Kf2 {[%clk 0:00:16]}  Nxh2 {[%clk 0:00:05]} 42. Kg3 {[%clk 0:00:16]}  Nf1+ {[%clk 0:00:05]} 43. Kf2 {[%clk 0:00:17]}  Nh2 {[%clk 0:00:06]} 44. Kg3 {[%clk 0:00:15]}  Nf1+ {[%clk 0:00:05]} 45. Kf3 {[%clk 0:00:16]}  Nh2+ {[%clk 0:00:05]} 46. Kg2 {[%clk 0:00:14]}  Nxg4 {[%clk 0:00:05]} 47. Rg8+ {[%clk 0:00:15]}  Kf6 {[%clk 0:00:05]} 48. Ne6 {[%clk 0:00:13]}  Ne3+ {[%clk 0:00:02]} 49. Kf3 {[%clk 0:00:14]}  Nf5 {[%clk 0:00:03]} 50. Rf8+ {[%clk 0:00:13]}  Ke5 {[%clk 0:00:03]} 51. Nxg5 {[%clk 0:00:13]}  Rh2 {[%clk 0:00:02]} 52. Re8+ {[%clk 0:00:12]}  Kf6 {[%clk 0:00:02]} 53. Ne4+ {[%clk 0:00:10]}  Kf7 {[%clk 0:00:02]} 54. Rc8 {[%clk 0:00:11]}  Rxa2 {[%clk 0:00:02]} 55. Rxc7+ {[%clk 0:00:11]}  Kg6 {[%clk 0:00:02]} 56. Rc6 {[%clk 0:00:10]}  Nd4+ {[%clk 0:00:02]} 57. Ke3 {[%clk 0:00:11]}  Nxc6 {[%clk 0:00:02]} 58. dxc6 {[%clk 0:00:12]}  Ra6 {[%clk 0:00:03]} 59. Kd4 {[%clk 0:00:06]}  Rxc6 {[%clk 0:00:03]} 60. b4 {[%clk 0:00:04]}  a6 {[%clk 0:00:03]} 61. Kd5 {[%clk 0:00:02]}  Rb6 {[%clk 0:00:03]} 62. Nxd6 {[%clk 0:00:03]}  Rxb4 {[%clk 0:00:03]} 63. c5 {[%clk 0:00:03]}  Rb1 {[%clk 0:00:02]} 64. c6 {[%clk 0:00:04]}  Rc1 {[%clk 0:00:02]} 65. Nc4 {[%clk 0:00:04]}  Rf1 {[%clk 0:00:02]} 66. c7 {[%clk 0:00:04]}  Rf8 {[%clk 0:00:02]} 67. Nd6 {[%clk 0:00:05]}  Kf6 {[%clk 0:00:03]} 68. Kc6 {[%clk 0:00:05]}  Ke6 {[%clk 0:00:03]} 69. Nb7 {[%clk 0:00:05]}  Ke7 {[%clk 0:00:02]} 70. Kb6 {[%clk 0:00:04]}  Rc8 {[%clk 0:00:03]} 71. Nc5 {[%clk 0:00:04]}  Rxc7 {[%clk 0:00:03]} 72. Kxc7 {[%clk 0:00:05]}  a5 {[%clk 0:00:04]} 73. Kc6 {[%clk 0:00:05]}  a4 {[%clk 0:00:05]} 74. Nxa4 {[%clk 0:00:06]} 1/2-1/2


[Site "https://www.chess.com"]

[Event "Titled Tuesday Blitz August 09 Early 2022"]
[White "Bolourchifard, Farzad"]
[Black "Jaskolka, Tomasz"]
[WhiteFideId "12510084"]
[BlackFideId "1170791"]
[WhiteElo "2317"]
[BlackElo "2073"]
[Result "0-1"]
[Round "10"]
[TimeControl "180+1"]
[Date "2022.08.09"]
[WhiteClock "0:00:11"]
[BlackClock "0:00:36"]

1. e4 {[%clk 0:02:37]}  c5 {[%clk 0:02:56]} 2. Nc3 {[%clk 0:02:37]}  e6 {[%clk 0:02:53]} 3. g3 {[%clk 0:02:37]}  d5 {[%clk 0:02:49]} 4. exd5 {[%clk 0:02:38]}  exd5 {[%clk 0:02:50]} 5. Bg2 {[%clk 0:02:39]}  Nf6 {[%clk 0:02:50]} 6. Nge2 {[%clk 0:02:39]}  d4 {[%clk 0:02:45]} 7. Ne4 {[%clk 0:02:39]}  Nxe4 {[%clk 0:02:41]} 8. Bxe4 {[%clk 0:02:40]}  Nc6 {[%clk 0:02:42]} 9. O-O {[%clk 0:02:40]}  Be7 {[%clk 0:02:42]} 10. Re1 {[%clk 0:02:31]}  O-O {[%clk 0:02:42]} 11. c3 {[%clk 0:02:27]}  Bg4 {[%clk 0:02:38]} 12. Bg2 {[%clk 0:02:15]}  d3 {[%clk 0:02:31]} 13. f3 {[%clk 0:02:15]}  dxe2 {[%clk 0:02:31]} 14. Qxe2 {[%clk 0:02:16]}  Be6 {[%clk 0:02:31]} 15. d3 {[%clk 0:02:16]}  Qd7 {[%clk 0:02:25]} 16. Be3 {[%clk 0:02:16]}  Rad8 {[%clk 0:02:24]} 17. Red1 {[%clk 0:02:17]}  Bf6 {[%clk 0:02:23]} 18. Rd2 {[%clk 0:02:15]}  b6 {[%clk 0:02:20]} 19. h4 {[%clk 0:02:06]}  Ne5 {[%clk 0:02:11]} 20. Bf1 {[%clk 0:01:50]}  Bh3 {[%clk 0:02:10]} 21. Rad1 {[%clk 0:01:41]}  Bxf1 {[%clk 0:02:08]} 22. Qxf1 {[%clk 0:01:42]}  Rfe8 {[%clk 0:02:04]} 23. Kg2 {[%clk 0:01:40]}  Ng4 {[%clk 0:01:51]} 24. Bg1 {[%clk 0:01:36]}  Ne3+ {[%clk 0:01:50]} 25. Bxe3 {[%clk 0:01:36]}  Rxe3 {[%clk 0:01:51]} 26. d4 {[%clk 0:01:34]}  cxd4 {[%clk 0:01:50]} 27. Qf2 {[%clk 0:01:31]}  Rde8 {[%clk 0:01:46]} 28. cxd4 {[%clk 0:01:30]}  Qd5 {[%clk 0:01:46]} 29. b3 {[%clk 0:01:18]}  g6 {[%clk 0:01:44]} 30. Rc1 {[%clk 0:01:11]}  Kg7 {[%clk 0:01:38]} 31. Rc7 {[%clk 0:01:07]}  a6 {[%clk 0:01:28]} 32. Rc4 {[%clk 0:01:02]}  h5 {[%clk 0:01:25]} 33. Rdc2 {[%clk 0:00:55]}  a5 {[%clk 0:01:23]} 34. Rd2 {[%clk 0:00:55]}  Re1 {[%clk 0:01:19]} 35. Rc8 {[%clk 0:00:45]}  Rxc8 {[%clk 0:01:14]} 36. Qxe1 {[%clk 0:00:46]}  Bxd4 {[%clk 0:01:01]} 37. Qe2 {[%clk 0:00:43]}  Rd8 {[%clk 0:01:00]} 38. Qd3 {[%clk 0:00:42]}  Qc5 {[%clk 0:00:56]} 39. Qe4 {[%clk 0:00:37]}  Bf6 {[%clk 0:00:52]} 40. Re2 {[%clk 0:00:37]}  Qd5 {[%clk 0:00:49]} 41. Qe3 {[%clk 0:00:36]}  Qd4 {[%clk 0:00:49]} 42. Qc1 {[%clk 0:00:34]}  Qd1 {[%clk 0:00:49]} 43. Qc4 {[%clk 0:00:34]}  Rd2 {[%clk 0:00:45]} 44. Rxd2 {[%clk 0:00:27]}  Qxd2+ {[%clk 0:00:46]} 45. Kh3 {[%clk 0:00:28]}  Qe3 {[%clk 0:00:43]} 46. Qf1 {[%clk 0:00:19]}  Bd4 {[%clk 0:00:40]} 47. g4 {[%clk 0:00:15]}  hxg4+ {[%clk 0:00:39]} 48. Kxg4 {[%clk 0:00:14]}  Be5 {[%clk 0:00:36]} 49. Qd1 {[%clk 0:00:11]}  Qf4+ {[%clk 0:00:36]} 0-1


[Site "https://www.chess.com"]

[Event "Titled Tuesday Blitz August 09 Early 2022"]
[White "Bristy, Mukherjee"]
[Black "Navarrete Mendez, Gonzalo Alberto"]
[WhiteFideId "25077325"]
[BlackFideId "5106850"]
[WhiteElo "1661"]
[BlackElo "2261"]
[Result "1-0"]
[Round "10"]
[TimeControl "180+1"]
[Date "2022.08.09"]
[WhiteClock "0:00:18"]
[BlackClock "0:00:15"]

1. d4 {[%clk 0:03:00]}  d5 {[%clk 0:02:59]} 2. c3 {[%clk 0:03:00]}  c5 {[%clk 0:02:58]} 3. dxc5 {[%clk 0:02:58]}  e6 {[%clk 0:02:57]} 4. e4 {[%clk 0:02:57]}  Bxc5 {[%clk 0:02:56]} 5. exd5 {[%clk 0:02:57]}  Nf6 {[%clk 0:02:52]} 6. Bb5+ {[%clk 0:02:41]}  Ke7 {[%clk 0:02:52]} 7. b4 {[%clk 0:02:12]}  Bxf2+ {[%clk 0:02:37]} 8. Kxf2 {[%clk 0:02:10]}  Qb6+ {[%clk 0:02:36]} 9. Be3 {[%clk 0:02:09]}  Qxb5 {[%clk 0:02:32]} 10. Bc5+ {[%clk 0:02:05]}  Ke8 {[%clk 0:02:26]} 11. dxe6 {[%clk 0:02:00]}  Bxe6 {[%clk 0:02:05]} 12. Nd2 {[%clk 0:01:54]}  Nc6 {[%clk 0:02:01]} 13. h3 {[%clk 0:01:49]}  Rd8 {[%clk 0:02:00]} 14. Ngf3 {[%clk 0:01:47]}  Qd3 {[%clk 0:01:01]} 15. Qe2 {[%clk 0:01:29]}  b6 {[%clk 0:00:42]} 16. Be3 {[%clk 0:01:17]}  Ke7 {[%clk 0:00:20]} 17. Nd4 {[%clk 0:01:07]}  Qxe2+ {[%clk 0:00:18]} 18. Kxe2 {[%clk 0:01:05]}  Nxd4+ {[%clk 0:00:16]} 19. Bxd4 {[%clk 0:01:05]}  Nd5 {[%clk 0:00:16]} 20. Kf2 {[%clk 0:00:57]}  f6 {[%clk 0:00:16]} 21. Rhe1 {[%clk 0:00:57]}  Kf7 {[%clk 0:00:16]} 22. Nf3 {[%clk 0:00:44]}  Nf4 {[%clk 0:00:14]} 23. Re3 {[%clk 0:00:42]}  Bd5 {[%clk 0:00:14]} 24. Rae1 {[%clk 0:00:41]}  Rhe8 {[%clk 0:00:14]} 25. Rxe8 {[%clk 0:00:35]}  Rxe8 {[%clk 0:00:15]} 26. Rxe8 {[%clk 0:00:35]}  Kxe8 {[%clk 0:00:16]} 27. Ne1 {[%clk 0:00:33]}  Bxa2 {[%clk 0:00:15]} 28. Ke3 {[%clk 0:00:31]}  Ne6 {[%clk 0:00:15]} 29. h4 {[%clk 0:00:28]}  Bd5 {[%clk 0:00:15]} 30. g3 {[%clk 0:00:28]}  Kf7 {[%clk 0:00:16]} 31. Nd3 {[%clk 0:00:25]}  g5 {[%clk 0:00:15]} 32. hxg5 {[%clk 0:00:23]}  fxg5 {[%clk 0:00:16]} 33. Be5 {[%clk 0:00:23]}  h5 {[%clk 0:00:15]} 34. Nf2 {[%clk 0:00:23]}  h4 {[%clk 0:00:14]} 35. gxh4 {[%clk 0:00:22]}  gxh4 {[%clk 0:00:15]} 36. Bb8 {[%clk 0:00:18]} 1-0


[Site "https://www.chess.com"]

[Event "Titled Tuesday Blitz August 09 Early 2022"]
[White "Bryakin, Mikhail"]
[Black "Aradhya, Garg"]
[WhiteFideId "4165314"]
[BlackFideId "25006746"]
[WhiteElo "2353"]
[BlackElo "2203"]
[Result "0-1"]
[Round "10"]
[TimeControl "180+1"]
[Date "2022.08.09"]
[WhiteClock "0:00:23"]
[BlackClock "0:00:40"]

1. b3 {[%clk 0:02:58]}  e5 {[%clk 0:02:59]} 2. Bb2 {[%clk 0:02:50]}  Nc6 {[%clk 0:02:59]} 3. c4 {[%clk 0:02:43]}  Nf6 {[%clk 0:02:58]} 4. g3 {[%clk 0:02:43]}  a5 {[%clk 0:02:55]} 5. a3 {[%clk 0:02:42]}  d5 {[%clk 0:02:54]} 6. Bg2 {[%clk 0:02:42]}  Be6 {[%clk 0:02:46]} 7. d3 {[%clk 0:02:41]}  a4 {[%clk 0:02:44]} 8. Nc3 {[%clk 0:02:31]}  axb3 {[%clk 0:02:43]} 9. Qxb3 {[%clk 0:02:15]}  Nd4 {[%clk 0:02:41]} 10. Qd1 {[%clk 0:02:10]}  dxc4 {[%clk 0:02:39]} 11. e3 {[%clk 0:02:09]}  Nb3 {[%clk 0:02:34]} 12. dxc4 {[%clk 0:02:05]}  Nxa1 {[%clk 0:02:32]} 13. Qxa1 {[%clk 0:02:01]}  c6 {[%clk 0:02:32]} 14. Nf3 {[%clk 0:01:59]}  Bxc4 {[%clk 0:02:24]} 15. Nxe5 {[%clk 0:01:58]}  Ba6 {[%clk 0:02:24]} 16. Qa2 {[%clk 0:01:43]}  Qc7 {[%clk 0:02:23]} 17. Ne4 {[%clk 0:01:36]}  Nxe4 {[%clk 0:02:03]} 18. Bxe4 {[%clk 0:01:36]}  Bd6 {[%clk 0:02:00]} 19. Nc4 {[%clk 0:01:33]}  O-O {[%clk 0:01:48]} 20. O-O {[%clk 0:01:33]}  Rfe8 {[%clk 0:01:45]} 21. Bd3 {[%clk 0:01:29]}  Bxc4 {[%clk 0:01:43]} 22. Bxc4 {[%clk 0:01:30]}  Be5 {[%clk 0:01:43]} 23. Bc1 {[%clk 0:01:28]}  b5 {[%clk 0:01:43]} 24. Bb3 {[%clk 0:01:27]}  Rad8 {[%clk 0:01:29]} 25. a4 {[%clk 0:01:20]}  Ra8 {[%clk 0:01:16]} 26. Qc2 {[%clk 0:01:19]}  Qa7 {[%clk 0:01:15]} 27. axb5 {[%clk 0:01:18]}  cxb5 {[%clk 0:01:16]} 28. Bd2 {[%clk 0:01:07]}  Rec8 {[%clk 0:01:12]} 29. Qf5 {[%clk 0:01:06]}  Bc3 {[%clk 0:01:08]} 30. Rc1 {[%clk 0:01:00]}  b4 {[%clk 0:01:07]} 31. e4 {[%clk 0:00:47]}  g6 {[%clk 0:01:04]} 32. Qf3 {[%clk 0:00:42]}  Bxd2 {[%clk 0:01:01]} 33. Rd1 {[%clk 0:00:38]}  Rc1 {[%clk 0:01:00]} 34. Rxc1 {[%clk 0:00:36]}  Bxc1 {[%clk 0:01:00]} 35. e5 {[%clk 0:00:37]}  Re8 {[%clk 0:00:59]} 36. Qc6 {[%clk 0:00:36]}  Rxe5 {[%clk 0:00:50]} 37. Qxc1 {[%clk 0:00:36]}  Qc5 {[%clk 0:00:47]} 38. Qd2 {[%clk 0:00:34]}  Qc3 {[%clk 0:00:43]} 39. Qd8+ {[%clk 0:00:34]}  Kg7 {[%clk 0:00:43]} 40. Bd1 {[%clk 0:00:23]}  b3 {[%clk 0:00:40]} 0-1


[Site "https://www.chess.com"]

[Event "Titled Tuesday Blitz August 09 Early 2022"]
[White "Daeschler, Florian"]
[Black "Ezov"]
[WhiteFideId "20678193"]
[WhiteElo "2187"]
[BlackElo "2291"]
[Result "1-0"]
[Round "10"]
[TimeControl "180+1"]
[Date "2022.08.09"]
[WhiteClock "0:01:34"]
[BlackClock "0:00:10"]

1. b3 {[%clk 0:03:00]}  e5 {[%clk 0:02:59]} 2. Bb2 {[%clk 0:03:00]}  d6 {[%clk 0:03:00]} 3. e3 {[%clk 0:03:00]}  f5 {[%clk 0:02:59]} 4. c4 {[%clk 0:02:59]}  Nf6 {[%clk 0:02:58]} 5. Ne2 {[%clk 0:02:56]}  g6 {[%clk 0:02:57]} 6. d4 {[%clk 0:02:56]}  e4 {[%clk 0:02:57]} 7. h4 {[%clk 0:02:54]}  Bg7 {[%clk 0:02:57]} 8. Nf4 {[%clk 0:02:54]}  O-O {[%clk 0:02:52]} 9. Be2 {[%clk 0:02:52]}  c6 {[%clk 0:02:48]} 10. d5 {[%clk 0:02:51]}  c5 {[%clk 0:02:33]} 11. Nc3 {[%clk 0:02:44]}  a6 {[%clk 0:02:32]} 12. a4 {[%clk 0:02:41]}  Qe7 {[%clk 0:02:26]} 13. a5 {[%clk 0:02:40]}  Bd7 {[%clk 0:02:15]} 14. Na4 {[%clk 0:02:37]}  Ng4 {[%clk 0:01:52]} 15. Bxg7 {[%clk 0:02:12]}  Qxg7 {[%clk 0:01:44]} 16. Nb6 {[%clk 0:02:12]}  Qc3+ {[%clk 0:01:28]} 17. Kf1 {[%clk 0:02:10]}  Nxe3+ {[%clk 0:01:01]} 18. fxe3 {[%clk 0:02:07]}  Qxe3 {[%clk 0:01:02]} 19. Qc1 {[%clk 0:01:54]}  Qxc1+ {[%clk 0:00:44]} 20. Rxc1 {[%clk 0:01:55]}  Ra7 {[%clk 0:00:44]} 21. Kf2 {[%clk 0:01:55]}  Kf7 {[%clk 0:00:27]} 22. Ke3 {[%clk 0:01:53]}  Kf6 {[%clk 0:00:23]} 23. Rcf1 {[%clk 0:01:39]}  Ke5 {[%clk 0:00:18]} 24. g4 {[%clk 0:01:35]}  fxg4 {[%clk 0:00:15]} 25. Nxg6+ {[%clk 0:01:35]}  hxg6 {[%clk 0:00:14]} 26. Rxf8 {[%clk 0:01:35]}  Bf5 {[%clk 0:00:10]} 27. Rxb8 {[%clk 0:01:34]} 1-0


[Site "https://www.chess.com"]

[Event "Titled Tuesday Blitz August 09 Early 2022"]
[White "Degardin, Sylvain"]
[Black "Floresvillar Gonzalez, Luis Migu"]
[WhiteFideId "20623070"]
[BlackFideId "5100542"]
[WhiteElo "2146"]
[BlackElo "2040"]
[Result "1-0"]
[Round "10"]
[TimeControl "180+1"]
[Date "2022.08.09"]
[WhiteClock "0:01:37"]
[BlackClock "0:00:33"]

1. Nh3 {[%clk 0:03:00]}  d5 {[%clk 0:02:55]} 2. g3 {[%clk 0:02:59]}  Bg4 {[%clk 0:02:48]} 3. d4 {[%clk 0:02:52]}  c6 {[%clk 0:02:46]} 4. Bg2 {[%clk 0:02:51]}  g6 {[%clk 0:02:38]} 5. O-O {[%clk 0:02:48]}  h5 {[%clk 0:02:37]} 6. f3 {[%clk 0:02:46]}  Bf5 {[%clk 0:02:33]} 7. e4 {[%clk 0:02:40]}  dxe4 {[%clk 0:02:33]} 8. fxe4 {[%clk 0:02:41]}  Bg4 {[%clk 0:02:33]} 9. Qd3 {[%clk 0:02:36]}  Nf6 {[%clk 0:02:26]} 10. e5 {[%clk 0:02:27]}  Nd5 {[%clk 0:02:25]} 11. Ng5 {[%clk 0:02:23]}  Bf5 {[%clk 0:01:50]} 12. Rxf5 {[%clk 0:02:18]}  gxf5 {[%clk 0:01:50]} 13. Qxf5 {[%clk 0:02:15]}  Nf6 {[%clk 0:01:00]} 14. Be3 {[%clk 0:02:02]}  Nbd7 {[%clk 0:00:42]} 15. e6 {[%clk 0:01:39]}  fxe6 {[%clk 0:00:33]} 16. Qg6# {[%clk 0:01:37]} 1-0


[Site "https://www.chess.com"]

[Event "Titled Tuesday Blitz August 09 Early 2022"]
[White "Delorme, Axel"]
[Black "Bashirli, Saadat"]
[WhiteFideId "632023"]
[BlackFideId "13429990"]
[WhiteElo "2474"]
[BlackElo "1173"]
[Result "1-0"]
[Round "10"]
[TimeControl "180+1"]
[Date "2022.08.09"]
[WhiteClock "0:00:26"]
[BlackClock "0:00:03"]

1. d4 {[%clk 0:03:00]}  d5 {[%clk 0:02:59]} 2. Nf3 {[%clk 0:03:00]}  e6 {[%clk 0:02:50]} 3. e3 {[%clk 0:03:00]}  c5 {[%clk 0:02:49]} 4. c3 {[%clk 0:02:59]}  Nc6 {[%clk 0:02:48]} 5. Bd3 {[%clk 0:02:59]}  Nf6 {[%clk 0:02:46]} 6. Nbd2 {[%clk 0:02:59]}  cxd4 {[%clk 0:02:46]} 7. exd4 {[%clk 0:02:58]}  Bd6 {[%clk 0:02:47]} 8. O-O {[%clk 0:02:56]}  O-O {[%clk 0:02:46]} 9. Re1 {[%clk 0:02:57]}  Qc7 {[%clk 0:02:40]} 10. Qe2 {[%clk 0:02:56]}  h6 {[%clk 0:02:30]} 11. Ne5 {[%clk 0:02:56]}  Bxe5 {[%clk 0:02:26]} 12. dxe5 {[%clk 0:02:57]}  Nd7 {[%clk 0:02:26]} 13. f4 {[%clk 0:02:53]}  f6 {[%clk 0:02:22]} 14. exf6 {[%clk 0:02:49]}  Nxf6 {[%clk 0:02:21]} 15. Nf3 {[%clk 0:02:49]}  Bd7 {[%clk 0:02:15]} 16. Ne5 {[%clk 0:02:36]}  Nxe5 {[%clk 0:01:39]} 17. fxe5 {[%clk 0:02:36]}  Ne4 {[%clk 0:01:32]} 18. Bxe4 {[%clk 0:02:19]}  dxe4 {[%clk 0:01:33]} 19. Qxe4 {[%clk 0:02:19]}  Rf5 {[%clk 0:01:16]} 20. Qg4 {[%clk 0:02:10]}  Rxe5 {[%clk 0:00:52]} 21. Bxh6 {[%clk 0:01:57]}  Bc6 {[%clk 0:00:40]} 22. Bf4 {[%clk 0:01:35]}  Rxe1+ {[%clk 0:00:36]} 23. Rxe1 {[%clk 0:01:36]}  Qf7 {[%clk 0:00:32]} 24. Qxe6 {[%clk 0:01:26]}  Re8 {[%clk 0:00:25]} 25. Qxf7+ {[%clk 0:01:19]}  Kxf7 {[%clk 0:00:26]} 26. Rxe8 {[%clk 0:01:19]}  Kxe8 {[%clk 0:00:23]} 27. Kf2 {[%clk 0:01:17]}  Kf7 {[%clk 0:00:20]} 28. g3 {[%clk 0:01:16]}  Kf6 {[%clk 0:00:20]} 29. h4 {[%clk 0:00:40]}  Kf5 {[%clk 0:00:16]} 30. Ke3 {[%clk 0:00:38]}  g6 {[%clk 0:00:13]} 31. Kd4 {[%clk 0:00:37]}  Bd7 {[%clk 0:00:08]} 32. b3 {[%clk 0:00:35]}  Bc6 {[%clk 0:00:08]} 33. c4 {[%clk 0:00:34]}  Bf3 {[%clk 0:00:06]} 34. Bb8 {[%clk 0:00:32]}  a6 {[%clk 0:00:05]} 35. Bf4 {[%clk 0:00:33]}  Bc6 {[%clk 0:00:05]} 36. a3 {[%clk 0:00:33]}  Bf3 {[%clk 0:00:05]} 37. Kc5 {[%clk 0:00:32]}  Bc6 {[%clk 0:00:05]} 38. b4 {[%clk 0:00:32]}  Bd7 {[%clk 0:00:02]} 39. b5 {[%clk 0:00:32]}  axb5 {[%clk 0:00:02]} 40. cxb5 {[%clk 0:00:33]}  Be6 {[%clk 0:00:03]} 41. a4 {[%clk 0:00:31]}  Ke4 {[%clk 0:00:03]} 42. a5 {[%clk 0:00:29]}  Bd5 {[%clk 0:00:03]} 43. a6 {[%clk 0:00:26]}  bxa6 {[%clk 0:00:03]} 44. bxa6 {[%clk 0:00:26]} 1-0


[Site "https://www.chess.com"]